[Event "Titled Tuesday Blitz April 05 Late 2022"]
[White "Shimanov, Aleksandr"]
[Black "Javakhadze, Zurab"]
[WhiteFideId "4198603"]
[BlackFideId "13603647"]
[WhiteElo "2636"]
[BlackElo "2381"]
[Result "1-0"]
[Round "05"]
[TimeControl "180+1"]
[Date "2022.04.05"]
[WhiteClock "0:00:29"]
[BlackClock "0:00:07"]

1. d4 {[%clk 0:03:00]}  d5 {[%clk 0:02:59]} 2. Nc3 {[%clk 0:03:00]}  Nf6 {[%clk 0:02:54]} 3. Bf4 {[%clk 0:02:59]}  e6 {[%clk 0:02:53]} 4. Nb5 {[%clk 0:02:59]}  Na6 {[%clk 0:02:53]} 5. e3 {[%clk 0:02:58]}  Be7 {[%clk 0:02:53]} 6. Nf3 {[%clk 0:02:51]}  O-O {[%clk 0:02:52]} 7. g4 {[%clk 0:02:39]}  Ne4 {[%clk 0:02:34]} 8. Nd2 {[%clk 0:02:25]}  c5 {[%clk 0:02:13]} 9. Nxe4 {[%clk 0:02:19]}  dxe4 {[%clk 0:02:13]} 10. c3 {[%clk 0:02:16]}  Bd7 {[%clk 0:02:05]} 11. a4 {[%clk 0:02:16]}  Bc6 {[%clk 0:02:02]} 12. Bg2 {[%clk 0:01:54]}  f5 {[%clk 0:01:49]} 13. gxf5 {[%clk 0:01:50]}  exf5 {[%clk 0:01:28]} 14. Bf1 {[%clk 0:01:45]}  Kh8 {[%clk 0:01:23]} 15. Rg1 {[%clk 0:01:45]}  g5 {[%clk 0:01:15]} 16. Be5+ {[%clk 0:01:37]}  Bf6 {[%clk 0:01:16]} 17. Nd6 {[%clk 0:01:36]}  Qe7 {[%clk 0:00:56]} 18. Qh5 {[%clk 0:01:19]}  Rad8 {[%clk 0:00:42]} 19. Nxf5 {[%clk 0:01:01]}  Qe6 {[%clk 0:00:43]} 20. Nh6 {[%clk 0:00:50]}  Bxe5 {[%clk 0:00:39]} 21. dxe5 {[%clk 0:00:50]}  Qd5 {[%clk 0:00:15]} 22. Be2 {[%clk 0:00:48]}  Qxe5 {[%clk 0:00:07]} 23. Rxg5 {[%clk 0:00:45]}  Qf6 {[%clk 0:00:07]} 24. Rf5 {[%clk 0:00:41]}  Qg6 {[%clk 0:00:06]} 25. Nf7+ {[%clk 0:00:35]}  Kg7 {[%clk 0:00:07]} 26. Qxg6+ {[%clk 0:00:29]}  hxg6 {[%clk 0:00:07]} 27. Nxd8 {[%clk 0:00:29]}  Rxf5 {[%clk 0:00:07]} 28. Nxc6 {[%clk 0:00:29]} 1-0


[Site "https://www.chess.com"]

[Event "Titled Tuesday Blitz April 05 Late 2022"]
[White "Soysal, Serkan"]
[Black "Foisor, Sabina-Francesca"]
[WhiteFideId "6349250"]
[BlackFideId "1212915"]
[WhiteElo "2440"]
[BlackElo "2243"]
[Result "1-0"]
[Round "05"]
[TimeControl "180+1"]
[Date "2022.04.06"]
[WhiteClock "0:00:06"]
[BlackClock "0:00:05"]

1. d4 {[%clk 0:03:00]}  d5 {[%clk 0:02:59]} 2. c4 {[%clk 0:02:57]}  e6 {[%clk 0:02:56]} 3. Nf3 {[%clk 0:02:57]}  Nf6 {[%clk 0:02:54]} 4. g3 {[%clk 0:02:56]}  Be7 {[%clk 0:02:53]} 5. Bg2 {[%clk 0:02:56]}  O-O {[%clk 0:02:54]} 6. Qc2 {[%clk 0:02:52]}  c6 {[%clk 0:02:54]} 7. O-O {[%clk 0:02:51]}  b6 {[%clk 0:02:53]} 8. b3 {[%clk 0:02:50]}  Bb7 {[%clk 0:02:53]} 9. Bb2 {[%clk 0:02:50]}  Na6 {[%clk 0:02:54]} 10. Nc3 {[%clk 0:02:43]}  Rc8 {[%clk 0:02:53]} 11. e4 {[%clk 0:02:41]}  c5 {[%clk 0:02:49]} 12. exd5 {[%clk 0:02:37]}  exd5 {[%clk 0:02:44]} 13. dxc5 {[%clk 0:02:29]}  dxc4 {[%clk 0:02:06]} 14. Rfd1 {[%clk 0:02:02]}  Qe8 {[%clk 0:02:05]} 15. bxc4 {[%clk 0:01:46]}  Nxc5 {[%clk 0:02:00]} 16. Qf5 {[%clk 0:01:34]}  Ne6 {[%clk 0:01:51]} 17. Nd5 {[%clk 0:01:20]}  Rxc4 {[%clk 0:00:53]} 18. Nxf6+ {[%clk 0:01:10]}  Bxf6 {[%clk 0:00:54]} 19. Bxf6 {[%clk 0:01:10]}  gxf6 {[%clk 0:00:41]} 20. Qxf6 {[%clk 0:00:53]}  Bxf3 {[%clk 0:00:30]} 21. Bxf3 {[%clk 0:00:50]}  Rc5 {[%clk 0:00:20]} 22. h4 {[%clk 0:00:33]}  Ng7 {[%clk 0:00:18]} 23. Bd5 {[%clk 0:00:28]}  Qe2 {[%clk 0:00:07]} 24. Bb3 {[%clk 0:00:13]}  Qh5 {[%clk 0:00:06]} 25. Rd7 {[%clk 0:00:12]}  Qg6 {[%clk 0:00:06]} 26. Qe7 {[%clk 0:00:07]}  a5 {[%clk 0:00:05]} 27. Rd8 {[%clk 0:00:06]} 1-0


[Site "https://www.chess.com"]

[Event "Titled Tuesday Blitz April 05 Late 2022"]
[White "Svane, Frederik"]
[Black "Nazaretyan, Tigran"]
[WhiteFideId "12923044"]
[BlackFideId "24162345"]
[WhiteElo "2459"]
[BlackElo "2225"]
[Result "1-0"]
[Round "05"]
[TimeControl "180+1"]
[Date "2022.04.05"]
[WhiteClock "0:00:51"]
[BlackClock "0:00:17"]

1. e4 {[%clk 0:03:00]}  c5 {[%clk 0:02:59]} 2. Nf3 {[%clk 0:03:01]}  Nc6 {[%clk 0:02:58]} 3. Bb5 {[%clk 0:03:01]}  g6 {[%clk 0:02:59]} 4. O-O {[%clk 0:03:01]}  Bg7 {[%clk 0:02:58]} 5. Re1 {[%clk 0:03:02]}  Nf6 {[%clk 0:02:58]} 6. e5 {[%clk 0:03:00]}  Nd5 {[%clk 0:02:57]} 7. Nc3 {[%clk 0:03:00]}  Nc7 {[%clk 0:02:57]} 8. Bxc6 {[%clk 0:03:00]}  dxc6 {[%clk 0:02:57]} 9. d3 {[%clk 0:02:59]}  O-O {[%clk 0:02:54]} 10. Ne4 {[%clk 0:02:58]}  b6 {[%clk 0:02:52]} 11. a4 {[%clk 0:02:51]}  Bg4 {[%clk 0:02:49]} 12. h3 {[%clk 0:02:43]}  Bxf3 {[%clk 0:02:46]} 13. Qxf3 {[%clk 0:02:43]}  Bxe5 {[%clk 0:02:40]} 14. Nxc5 {[%clk 0:02:42]}  Bg7 {[%clk 0:02:33]} 15. Ne4 {[%clk 0:02:35]}  Ne6 {[%clk 0:02:30]} 16. c3 {[%clk 0:02:30]}  Qd5 {[%clk 0:02:28]} 17. d4 {[%clk 0:02:25]}  Rad8 {[%clk 0:02:21]} 18. Be3 {[%clk 0:02:23]}  Rfe8 {[%clk 0:02:10]} 19. h4 {[%clk 0:02:11]}  f5 {[%clk 0:01:58]} 20. Ng5 {[%clk 0:01:58]}  Nxg5 {[%clk 0:01:57]} 21. Qxd5+ {[%clk 0:01:50]}  Rxd5 {[%clk 0:01:52]} 22. hxg5 {[%clk 0:01:36]}  e5 {[%clk 0:01:51]} 23. dxe5 {[%clk 0:01:32]}  Rdxe5 {[%clk 0:01:51]} 24. Kf1 {[%clk 0:01:30]}  c5 {[%clk 0:01:50]} 25. a5 {[%clk 0:01:25]}  b5 {[%clk 0:01:46]} 26. a6 {[%clk 0:01:25]}  R8e6 {[%clk 0:01:28]} 27. Red1 {[%clk 0:01:24]}  Bf8 {[%clk 0:01:23]} 28. Rd7 {[%clk 0:01:19]}  Re7 {[%clk 0:01:14]} 29. Rad1 {[%clk 0:01:19]}  Rxd7 {[%clk 0:01:12]} 30. Rxd7 {[%clk 0:01:19]}  Re7 {[%clk 0:01:12]} 31. Rd8 {[%clk 0:01:03]}  Rc7 {[%clk 0:01:11]} 32. Rb8 {[%clk 0:01:03]}  Rc6 {[%clk 0:00:54]} 33. b4 {[%clk 0:01:01]}  cxb4 {[%clk 0:00:39]} 34. cxb4 {[%clk 0:01:02]}  Kf7 {[%clk 0:00:39]} 35. Rb7+ {[%clk 0:01:02]}  Ke6 {[%clk 0:00:38]} 36. Rxa7 {[%clk 0:01:02]}  Bxb4 {[%clk 0:00:37]} 37. Ra8 {[%clk 0:01:02]}  Bc5 {[%clk 0:00:20]} 38. Bxc5 {[%clk 0:00:59]}  Rxc5 {[%clk 0:00:20]} 39. a7 {[%clk 0:00:59]}  Rc1+ {[%clk 0:00:17]} 40. Ke2 {[%clk 0:00:59]}  Ra1 {[%clk 0:00:18]} 41. Re8+ {[%clk 0:00:59]}  Kd5 {[%clk 0:00:17]} 42. a8=Q+ {[%clk 0:01:00]}  Rxa8 {[%clk 0:00:16]} 43. Rxa8 {[%clk 0:01:01]}  Kc4 {[%clk 0:00:17]} 44. Kd2 {[%clk 0:01:00]}  Kd4 {[%clk 0:00:16]} 45. Rh8 {[%clk 0:00:57]}  Ke4 {[%clk 0:00:17]} 46. Rxh7 {[%clk 0:00:58]}  Kf4 {[%clk 0:00:18]} 47. Rh4+ {[%clk 0:00:57]}  Kxg5 {[%clk 0:00:18]} 48. Rb4 {[%clk 0:00:57]}  f4 {[%clk 0:00:17]} 49. Ke2 {[%clk 0:00:57]}  Kg4 {[%clk 0:00:18]} 50. Rxb5 {[%clk 0:00:55]}  g5 {[%clk 0:00:19]} 51. Rb4 {[%clk 0:00:54]}  Kh4 {[%clk 0:00:18]} 52. Kf3 {[%clk 0:00:54]}  g4+ {[%clk 0:00:17]} 53. Kxf4 {[%clk 0:00:53]}  g3 {[%clk 0:00:17]} 54. f3 {[%clk 0:00:51]}  Kh5 {[%clk 0:00:17]} 55. Rb6 {[%clk 0:00:51]} 1-0


[Site "https://www.chess.com"]

[Event "Titled Tuesday Blitz April 05 Late 2022"]
[White "Tregubov, Pavel V."]
[Black "Vovk, Orest"]
[WhiteFideId "4115341"]
[BlackFideId "14113490"]
[WhiteElo "2612"]
[BlackElo "2502"]
[Result "0-1"]
[Round "05"]
[TimeControl "180+1"]
[Date "2022.04.06"]
[WhiteClock "0:00:48"]
[BlackClock "0:00:57"]

1. e4 {[%clk 0:03:00]}  g5 {[%clk 0:02:57]} 2. d4 {[%clk 0:03:00]}  h6 {[%clk 0:02:56]} 3. h4 {[%clk 0:02:59]}  g4 {[%clk 0:02:56]} 4. Qxg4 {[%clk 0:02:55]}  d5 {[%clk 0:02:56]} 5. Qe2 {[%clk 0:02:55]}  dxe4 {[%clk 0:02:56]} 6. Qxe4 {[%clk 0:02:53]}  Nf6 {[%clk 0:02:56]} 7. Qd3 {[%clk 0:02:54]}  Nc6 {[%clk 0:02:57]} 8. Nf3 {[%clk 0:02:54]}  Bg4 {[%clk 0:02:56]} 9. Be2 {[%clk 0:02:43]}  Qd5 {[%clk 0:02:56]} 10. Nc3 {[%clk 0:02:40]}  Qh5 {[%clk 0:02:55]} 11. Qb5 {[%clk 0:02:26]}  O-O-O {[%clk 0:02:50]} 12. Qxh5 {[%clk 0:02:26]}  Bxh5 {[%clk 0:02:48]} 13. Be3 {[%clk 0:02:27]}  Bxf3 {[%clk 0:02:47]} 14. Bxf3 {[%clk 0:02:27]}  Nxd4 {[%clk 0:02:47]} 15. O-O-O {[%clk 0:01:59]}  Nxf3 {[%clk 0:02:38]} 16. Rxd8+ {[%clk 0:01:59]}  Kxd8 {[%clk 0:02:38]} 17. Rd1+ {[%clk 0:01:54]}  Kc8 {[%clk 0:02:36]} 18. gxf3 {[%clk 0:01:40]}  a6 {[%clk 0:02:26]} 19. Bd4 {[%clk 0:01:34]}  Rg8 {[%clk 0:02:23]} 20. Re1 {[%clk 0:01:28]}  Nd7 {[%clk 0:02:05]} 21. f4 {[%clk 0:01:20]}  Rg4 {[%clk 0:01:59]} 22. Be3 {[%clk 0:01:15]}  Rxh4 {[%clk 0:01:47]} 23. Rg1 {[%clk 0:01:14]}  c6 {[%clk 0:01:31]} 24. Rg8 {[%clk 0:01:13]}  Kc7 {[%clk 0:01:30]} 25. Ne4 {[%clk 0:01:11]}  e6 {[%clk 0:01:24]} 26. Rh8 {[%clk 0:01:01]}  Bd6 {[%clk 0:01:06]} 27. Rh7 {[%clk 0:00:57]}  Bxf4 {[%clk 0:01:01]} 28. Kd2 {[%clk 0:00:48]}  Bxe3+ {[%clk 0:00:58]} 29. Kxe3 {[%clk 0:00:48]}  Rxe4+ {[%clk 0:00:57]} 0-1


[Site "https://www.chess.com"]

[Event "Titled Tuesday Blitz April 05 Late 2022"]
[White "Tristan, Leonardo"]
[Black "Baches Garcia, Guillermo"]
[WhiteFideId "113816"]
[BlackFideId "2209764"]
[WhiteElo "2404"]
[BlackElo "2517"]
[Result "1-0"]
[Round "05"]
[TimeControl "180+1"]
[Date "2022.04.05"]
[WhiteClock "0:00:09"]
[BlackClock "0:00:04"]

1. d4 {[%clk 0:03:00]}  Nf6 {[%clk 0:02:58]} 2. Nf3 {[%clk 0:03:01]}  e6 {[%clk 0:02:59]} 3. Bf4 {[%clk 0:03:01]}  d5 {[%clk 0:02:57]} 4. e3 {[%clk 0:03:00]}  c5 {[%clk 0:02:57]} 5. Nbd2 {[%clk 0:02:54]}  Nc6 {[%clk 0:02:57]} 6. c3 {[%clk 0:02:54]}  Nh5 {[%clk 0:02:57]} 7. Bg5 {[%clk 0:02:51]}  Qb6 {[%clk 0:02:57]} 8. dxc5 {[%clk 0:02:51]}  Bxc5 {[%clk 0:02:50]} 9. b4 {[%clk 0:02:51]}  Be7 {[%clk 0:02:44]} 10. Bxe7 {[%clk 0:02:38]}  Nxe7 {[%clk 0:02:44]} 11. a3 {[%clk 0:02:31]}  a5 {[%clk 0:02:34]} 12. b5 {[%clk 0:02:12]}  Nf6 {[%clk 0:02:26]} 13. c4 {[%clk 0:02:11]}  O-O {[%clk 0:02:22]} 14. Qb3 {[%clk 0:01:51]}  Bd7 {[%clk 0:02:05]} 15. a4 {[%clk 0:01:51]}  Rac8 {[%clk 0:01:51]} 16. Be2 {[%clk 0:01:51]}  Rfd8 {[%clk 0:01:22]} 17. O-O {[%clk 0:01:50]}  h6 {[%clk 0:01:15]} 18. Rac1 {[%clk 0:01:47]}  Be8 {[%clk 0:01:14]} 19. Qa3 {[%clk 0:01:45]}  Qc5 {[%clk 0:01:07]} 20. Qxc5 {[%clk 0:01:41]}  Rxc5 {[%clk 0:01:08]} 21. Nb3 {[%clk 0:01:41]}  Rc7 {[%clk 0:00:55]} 22. c5 {[%clk 0:01:30]}  Ne4 {[%clk 0:00:41]} 23. Ne5 {[%clk 0:01:17]}  Rdc8 {[%clk 0:00:39]} 24. Nd3 {[%clk 0:00:55]}  Ng6 {[%clk 0:00:21]} 25. f3 {[%clk 0:00:52]}  Nf6 {[%clk 0:00:18]} 26. Rb1 {[%clk 0:00:23]}  Ra8 {[%clk 0:00:18]} 27. Rfc1 {[%clk 0:00:23]}  e5 {[%clk 0:00:17]} 28. Kf2 {[%clk 0:00:19]}  Kf8 {[%clk 0:00:16]} 29. g4 {[%clk 0:00:18]}  Ke7 {[%clk 0:00:16]} 30. h3 {[%clk 0:00:19]}  e4 {[%clk 0:00:13]} 31. Nf4 {[%clk 0:00:17]}  Nxf4 {[%clk 0:00:12]} 32. exf4 {[%clk 0:00:18]}  exf3 {[%clk 0:00:12]} 33. Kxf3 {[%clk 0:00:18]}  Ne4 {[%clk 0:00:12]} 34. Bd3 {[%clk 0:00:17]}  f5 {[%clk 0:00:12]} 35. gxf5 {[%clk 0:00:17]}  Bh5+ {[%clk 0:00:12]} 36. Ke3 {[%clk 0:00:18]}  Kf6 {[%clk 0:00:12]} 37. Bxe4 {[%clk 0:00:16]}  Re8 {[%clk 0:00:11]} 38. Nd2 {[%clk 0:00:16]}  dxe4 {[%clk 0:00:09]} 39. c6 {[%clk 0:00:10]}  bxc6 {[%clk 0:00:09]} 40. Rxc6+ {[%clk 0:00:09]}  Rxc6 {[%clk 0:00:09]} 41. bxc6 {[%clk 0:00:10]}  Kxf5 {[%clk 0:00:09]} 42. Nc4 {[%clk 0:00:09]}  Rd8 {[%clk 0:00:06]} 43. c7 {[%clk 0:00:09]}  Ra8 {[%clk 0:00:04]} 44. c8=Q+ {[%clk 0:00:09]} 1-0


[Site "https://www.chess.com"]

[Event "Titled Tuesday Blitz April 05 Late 2022"]
[White "Tsukerman, Julia"]
[Black "Calderon, Zachary"]
[WhiteFideId "2621649"]
[BlackFideId "2076969"]
[WhiteElo "2162"]
[BlackElo "2281"]
[Result "0-1"]
[Round "05"]
[TimeControl "180+1"]
[Date "2022.04.06"]
[WhiteClock "0:02:02"]
[BlackClock "0:01:54"]

1. e4 {[%clk 0:03:00]}  e6 {[%clk 0:02:55]} 2. d4 {[%clk 0:03:00]}  d5 {[%clk 0:02:56]} 3. exd5 {[%clk 0:02:59]}  exd5 {[%clk 0:02:56]} 4. Bd3 {[%clk 0:03:00]}  c5 {[%clk 0:02:56]} 5. dxc5 {[%clk 0:02:57]}  Bxc5 {[%clk 0:02:57]} 6. c3 {[%clk 0:02:56]}  Ne7 {[%clk 0:02:56]} 7. Nf3 {[%clk 0:02:56]}  Bg4 {[%clk 0:02:56]} 8. Nbd2 {[%clk 0:02:56]}  Nbc6 {[%clk 0:02:56]} 9. Nb3 {[%clk 0:02:56]}  Bb6 {[%clk 0:02:56]} 10. Qe2 {[%clk 0:02:54]}  a5 {[%clk 0:02:41]} 11. Be3 {[%clk 0:02:46]}  Bc7 {[%clk 0:02:39]} 12. Nbd4 {[%clk 0:02:40]}  Ne5 {[%clk 0:02:09]} 13. Bb5+ {[%clk 0:02:31]}  N7c6 {[%clk 0:02:07]} 14. h3 {[%clk 0:02:17]}  Bxf3 {[%clk 0:01:58]} 15. Nxf3 {[%clk 0:02:16]}  O-O {[%clk 0:01:58]} 16. O-O {[%clk 0:02:08]}  Qf6 {[%clk 0:01:55]} 17. Nxe5 {[%clk 0:02:05]}  Qxe5 {[%clk 0:01:56]} 18. Qd3 {[%clk 0:02:02]}  Qh2# {[%clk 0:01:54]} 0-1


[Site "https://www.chess.com"]

[Event "Titled Tuesday Blitz April 05 Late 2022"]
[White "Vusatiuk, Vladimir"]
[Black "Mikhnenko, Alexander"]
[WhiteFideId "14118610"]
[BlackFideId "34143014"]
[WhiteElo "2565"]
[BlackElo "2403"]
[Result "1-0"]
[Round "05"]
[TimeControl "180+1"]
[Date "2022.04.06"]
[WhiteClock "0:00:04"]
[BlackClock "0:00:03"]

1. d4 {[%clk 0:03:00]}  Nf6 {[%clk 0:02:59]} 2. c4 {[%clk 0:03:01]}  d6 {[%clk 0:02:59]} 3. Nc3 {[%clk 0:03:01]}  e5 {[%clk 0:02:59]} 4. Nf3 {[%clk 0:02:58]}  Nbd7 {[%clk 0:02:58]} 5. g3 {[%clk 0:02:46]}  g6 {[%clk 0:02:58]} 6. Bg2 {[%clk 0:02:46]}  Bg7 {[%clk 0:02:58]} 7. O-O {[%clk 0:02:45]}  O-O {[%clk 0:02:59]} 8. e4 {[%clk 0:02:43]}  exd4 {[%clk 0:02:58]} 9. Nxd4 {[%clk 0:02:44]}  Re8 {[%clk 0:02:57]} 10. h3 {[%clk 0:02:38]}  Nc5 {[%clk 0:02:56]} 11. Re1 {[%clk 0:02:31]}  a5 {[%clk 0:02:55]} 12. Ndb5 {[%clk 0:02:24]}  Bd7 {[%clk 0:02:55]} 13. Bg5 {[%clk 0:02:02]}  h6 {[%clk 0:02:36]} 14. Bf4 {[%clk 0:02:00]}  Bxb5 {[%clk 0:02:36]} 15. cxb5 {[%clk 0:01:50]}  Nfd7 {[%clk 0:02:35]} 16. Qd2 {[%clk 0:01:38]}  h5 {[%clk 0:02:35]} 17. Bg5 {[%clk 0:01:32]}  Bf6 {[%clk 0:02:27]} 18. Bxf6 {[%clk 0:01:29]}  Nxf6 {[%clk 0:02:19]} 19. Qd4 {[%clk 0:01:26]}  Qe7 {[%clk 0:02:10]} 20. b6 {[%clk 0:01:11]}  c6 {[%clk 0:01:59]} 21. Rad1 {[%clk 0:00:56]}  Nfd7 {[%clk 0:01:46]} 22. Qxd6 {[%clk 0:00:45]}  Qxd6 {[%clk 0:01:47]} 23. Rxd6 {[%clk 0:00:45]}  Nxb6 {[%clk 0:01:48]} 24. b3 {[%clk 0:00:38]}  a4 {[%clk 0:01:39]} 25. b4 {[%clk 0:00:36]}  Ne6 {[%clk 0:01:18]} 26. e5 {[%clk 0:00:33]}  Red8 {[%clk 0:01:07]} 27. Red1 {[%clk 0:00:24]}  Kf8 {[%clk 0:00:58]} 28. Ne4 {[%clk 0:00:22]}  Ke7 {[%clk 0:00:57]} 29. Nc5 {[%clk 0:00:20]}  Nxc5 {[%clk 0:00:50]} 30. bxc5 {[%clk 0:00:21]}  Nc4 {[%clk 0:00:49]} 31. R6d4 {[%clk 0:00:16]}  Nxe5 {[%clk 0:00:45]} 32. Rxd8 {[%clk 0:00:10]}  Rxd8 {[%clk 0:00:45]} 33. Re1 {[%clk 0:00:11]}  Kf6 {[%clk 0:00:42]} 34. Rb1 {[%clk 0:00:10]}  Rd2 {[%clk 0:00:33]} 35. a3 {[%clk 0:00:09]}  Rd7 {[%clk 0:00:30]} 36. Rb4 {[%clk 0:00:09]}  Nd3 {[%clk 0:00:27]} 37. Rc4 {[%clk 0:00:09]}  Nb2 {[%clk 0:00:25]} 38. Rb4 {[%clk 0:00:09]}  Nd3 {[%clk 0:00:20]} 39. Rc4 {[%clk 0:00:09]}  Ke5 {[%clk 0:00:15]} 40. Bf1 {[%clk 0:00:08]}  Rd4 {[%clk 0:00:10]} 41. Rc3 {[%clk 0:00:07]}  Ke4 {[%clk 0:00:07]} 42. Rc2 {[%clk 0:00:04]}  Kd5 {[%clk 0:00:06]} 43. Bg2+ {[%clk 0:00:04]}  Ke6 {[%clk 0:00:05]} 44. Re2+ {[%clk 0:00:04]}  Kf6 {[%clk 0:00:06]} 45. Rd2 {[%clk 0:00:05]}  Ke5 {[%clk 0:00:05]} 46. f4+ {[%clk 0:00:05]}  Ke6 {[%clk 0:00:03]} 47. Kf1 {[%clk 0:00:05]}  Rd7 {[%clk 0:00:01]} 48. h4 {[%clk 0:00:04]}  Nxc5 {[%clk 0:00:02]} 49. Bh3+ {[%clk 0:00:03]}  Ke7 {[%clk 0:00:02]} 50. Bxd7 {[%clk 0:00:02]}  Nxd7 {[%clk 0:00:03]} 51. f5 {[%clk 0:00:02]}  gxf5 {[%clk 0:00:03]} 52. Re2+ {[%clk 0:00:03]}  Kd6 {[%clk 0:00:03]} 53. Rf2 {[%clk 0:00:04]}  Ke6 {[%clk 0:00:02]} 54. Rf4 {[%clk 0:00:05]}  Ne5 {[%clk 0:00:03]} 55. Rxa4 {[%clk 0:00:05]}  b5 {[%clk 0:00:04]} 56. Ra7 {[%clk 0:00:05]}  f6 {[%clk 0:00:03]} 57. Rc7 {[%clk 0:00:05]}  Kd6 {[%clk 0:00:03]} 58. Rc8 {[%clk 0:00:06]}  Kd5 {[%clk 0:00:03]} 59. Ke2 {[%clk 0:00:05]}  c5 {[%clk 0:00:03]} 60. Rh8 {[%clk 0:00:05]}  c4 {[%clk 0:00:03]} 61. Rxh5 {[%clk 0:00:06]}  Kd4 {[%clk 0:00:04]} 62. Rxf5 {[%clk 0:00:06]}  c3 {[%clk 0:00:04]} 63. Rf4+ {[%clk 0:00:06]}  Kc5 {[%clk 0:00:04]} 64. Kd1 {[%clk 0:00:05]}  Nc4 {[%clk 0:00:03]} 65. Rf5+ {[%clk 0:00:04]}  Kd4 {[%clk 0:00:03]} 66. Rxb5 {[%clk 0:00:03]}  Nxa3 {[%clk 0:00:03]} 67. Rb4+ {[%clk 0:00:03]}  Kd3 {[%clk 0:00:03]} 68. Ra4 {[%clk 0:00:03]}  Nc4 {[%clk 0:00:03]} 69. Rxc4 {[%clk 0:00:02]}  Kxc4 {[%clk 0:00:03]} 70. h5 {[%clk 0:00:02]}  Kd3 {[%clk 0:00:02]} 71. h6 {[%clk 0:00:02]}  Ke3 {[%clk 0:00:02]} 72. h7 {[%clk 0:00:02]}  Kf3 {[%clk 0:00:02]} 73. h8=Q {[%clk 0:00:03]}  Kxg3 {[%clk 0:00:03]} 74. Kc2 {[%clk 0:00:03]}  f5 {[%clk 0:00:03]} 75. Qxc3+ {[%clk 0:00:03]}  Kg4 {[%clk 0:00:02]} 76. Qd4+ {[%clk 0:00:03]}  f4 {[%clk 0:00:03]} 77. Qf2 {[%clk 0:00:03]}  f3 {[%clk 0:00:03]} 78. Kd3 {[%clk 0:00:04]} 1-0


[Site "https://www.chess.com"]

[Event "Titled Tuesday Blitz April 05 Late 2022"]
[White "Wu, Christopher"]
[Black "Chernomordik, Pavel"]
[WhiteFideId "2040875"]
[BlackFideId "2804530"]
[WhiteElo "2604"]
[BlackElo "2452"]
[Result "0-1"]
[Round "05"]
[TimeControl "180+1"]
[Date "2022.04.06"]
[WhiteClock "0:02:37"]
[BlackClock "0:02:37"]

1. d4 {[%clk 0:03:00]}  g6 {[%clk 0:03:00]} 2. c4 {[%clk 0:03:00]}  Bg7 {[%clk 0:03:00]} 3. Nc3 {[%clk 0:03:00]}  d6 {[%clk 0:03:00]} 4. e4 {[%clk 0:03:00]}  c6 {[%clk 0:03:00]} 5. h3 {[%clk 0:02:58]}  a6 {[%clk 0:03:00]} 6. a4 {[%clk 0:02:52]}  a5 {[%clk 0:02:59]} 7. f4 {[%clk 0:02:51]}  Na6 {[%clk 0:02:52]} 8. Nf3 {[%clk 0:02:50]}  Nb4 {[%clk 0:02:52]} 9. Be2 {[%clk 0:02:50]}  Qb6 {[%clk 0:02:51]} 10. Be3 {[%clk 0:02:48]}  e5 {[%clk 0:02:45]} 11. Qd2 {[%clk 0:02:47]}  exd4 {[%clk 0:02:40]} 12. Nxd4 {[%clk 0:02:46]}  Bxd4 {[%clk 0:02:39]} 13. Bxd4 {[%clk 0:02:46]}  Qxd4 {[%clk 0:02:38]} 14. Qxd4 {[%clk 0:02:43]}  Nc2+ {[%clk 0:02:38]} 15. Kd2 {[%clk 0:02:43]}  Nxd4 {[%clk 0:02:38]} 16. Ke3 {[%clk 0:02:37]}  Nc2+ {[%clk 0:02:37]} 0-1


[Site "https://www.chess.com"]

[Event "Titled Tuesday Blitz April 05 Late 2022"]
[White "Yuan, Qingyu"]
[Black "Sztokbant, Bernardo Vainzoff"]
[WhiteFideId "8609772"]
[BlackFideId "2115956"]
[WhiteElo "2822"]
[BlackElo "2532"]
[Result "1-0"]
[Round "05"]
[TimeControl "180+1"]
[Date "2022.04.06"]
[WhiteClock "0:00:06"]
[BlackClock "0:00:02"]

1. e4 {[%clk 0:03:00]}  c5 {[%clk 0:03:00]} 2. Nf3 {[%clk 0:03:00]}  Nc6 {[%clk 0:03:00]} 3. Bc4 {[%clk 0:02:59]}  e6 {[%clk 0:03:00]} 4. O-O {[%clk 0:02:59]}  a6 {[%clk 0:02:57]} 5. Re1 {[%clk 0:02:53]}  d6 {[%clk 0:02:56]} 6. c3 {[%clk 0:02:50]}  Nf6 {[%clk 0:02:55]} 7. d4 {[%clk 0:02:43]}  cxd4 {[%clk 0:02:46]} 8. cxd4 {[%clk 0:02:41]}  d5 {[%clk 0:02:43]} 9. exd5 {[%clk 0:02:41]}  Nxd5 {[%clk 0:02:44]} 10. Bxd5 {[%clk 0:02:42]}  Qxd5 {[%clk 0:02:42]} 11. Nc3 {[%clk 0:02:42]}  Qh5 {[%clk 0:02:26]} 12. d5 {[%clk 0:02:31]}  Ne7 {[%clk 0:02:23]} 13. Bf4 {[%clk 0:02:19]}  Ng6 {[%clk 0:02:16]} 14. Bg3 {[%clk 0:02:09]}  Be7 {[%clk 0:02:08]} 15. Nd4 {[%clk 0:01:35]}  Qxd1 {[%clk 0:02:02]} 16. Raxd1 {[%clk 0:01:36]}  O-O {[%clk 0:01:56]} 17. dxe6 {[%clk 0:01:36]}  fxe6 {[%clk 0:01:37]} 18. Nxe6 {[%clk 0:01:37]}  Bxe6 {[%clk 0:01:35]} 19. Rxe6 {[%clk 0:01:38]}  Rad8 {[%clk 0:01:32]} 20. Rb6 {[%clk 0:01:21]}  Bf6 {[%clk 0:01:17]} 21. h3 {[%clk 0:00:53]}  Rxd1+ {[%clk 0:01:06]} 22. Nxd1 {[%clk 0:00:53]}  Rf7 {[%clk 0:01:06]} 23. Ne3 {[%clk 0:00:43]}  Rd7 {[%clk 0:01:01]} 24. Ng4 {[%clk 0:00:40]}  Bd4 {[%clk 0:00:58]} 25. Rb3 {[%clk 0:00:39]}  b5 {[%clk 0:00:49]} 26. Rd3 {[%clk 0:00:39]}  Nf8 {[%clk 0:00:36]} 27. b3 {[%clk 0:00:34]}  Ne6 {[%clk 0:00:36]} 28. Ne5 {[%clk 0:00:24]}  Rc7 {[%clk 0:00:36]} 29. Nf3 {[%clk 0:00:19]}  Rc1+ {[%clk 0:00:37]} 30. Kh2 {[%clk 0:00:20]}  Bf6 {[%clk 0:00:37]} 31. Rd6 {[%clk 0:00:19]}  Nc5 {[%clk 0:00:38]} 32. Be5 {[%clk 0:00:14]}  Be7 {[%clk 0:00:24]} 33. Rb6 {[%clk 0:00:12]}  Nd3 {[%clk 0:00:16]} 34. Bd4 {[%clk 0:00:12]}  Nb4 {[%clk 0:00:12]} 35. Rb8+ {[%clk 0:00:10]}  Kf7 {[%clk 0:00:12]} 36. Rb7 {[%clk 0:00:10]}  Ke6 {[%clk 0:00:10]} 37. a3 {[%clk 0:00:07]}  Nd5 {[%clk 0:00:09]} 38. Bxg7 {[%clk 0:00:07]}  Rc2 {[%clk 0:00:09]} 39. Bd4 {[%clk 0:00:06]}  Bd6+ {[%clk 0:00:07]} 40. g3 {[%clk 0:00:06]}  Bxa3 {[%clk 0:00:07]} 41. Kg2 {[%clk 0:00:06]}  Bd6 {[%clk 0:00:07]} 42. Ba7 {[%clk 0:00:06]}  Ra2 {[%clk 0:00:07]} 43. Rxh7 {[%clk 0:00:06]}  a5 {[%clk 0:00:02]} 44. h4 {[%clk 0:00:06]}  a4 {[%clk 0:00:03]} 45. Rh6+ {[%clk 0:00:07]}  Kd7 {[%clk 0:00:03]} 46. bxa4 {[%clk 0:00:07]}  bxa4 {[%clk 0:00:03]} 47. h5 {[%clk 0:00:07]}  a3 {[%clk 0:00:03]} 48. Rg6 {[%clk 0:00:06]}  Rb2 {[%clk 0:00:03]} 49. Bd4 {[%clk 0:00:06]}  Ne7 {[%clk 0:00:02]} 50. Rg7 {[%clk 0:00:03]}  Rb1 {[%clk 0:00:01]} 51. h6 {[%clk 0:00:03]}  Be5 {[%clk 0:00:01]} 52. Bxe5 {[%clk 0:00:03]}  a2 {[%clk 0:00:01]} 53. h7 {[%clk 0:00:03]}  Rb8 {[%clk 0:00:02]} 54. h8=Q {[%clk 0:00:03]}  Rxh8 {[%clk 0:00:02]} 55. Rxe7+ {[%clk 0:00:04]}  Kxe7 {[%clk 0:00:03]} 56. Bxh8 {[%clk 0:00:05]}  a1=Q {[%clk 0:00:02]} 57. Bxa1 {[%clk 0:00:06]}  Kf7 {[%clk 0:00:02]} 58. g4 {[%clk 0:00:06]} 1-0


[Site "https://www.chess.com"]